bitfinex-derivatives/quotes_BNBF0:USTF0_20250329
["timestamp","ask_amount","ask_price","bid_price","bid_amount"]
[1743213277618,1.20196676,617.71,617.65,4.07]
[1743213277818,0.93313972,617.7,617.65,4.07]
[1743213278419,0.93313972,617.69,617.65,4.07]
[1743213279020,0.93313972,617.68,617.65,4.07]
[1743213279622,0.93313972,617.67,617.65,4.07]
[1743213280022,0.68013005,617.76,617.65,2.872]
[1743213280223,1.88189207,617.75,617.65,2.872]
[1743213280423,1.20176202,617.74,617.65,2.872]
[1743213280618,1.20176202,617.73,617.65,2.872]
[1743213280821,2.13176604,617.72,617.65,2.872]
[1743213281021,1.20176202,617.71,617.65,1.671]
[1743213281322,0.93000402,617.72,617.65,1.671]
[1743213281528,0.93000402,617.7,617.65,1.671]
[1743213282423,0.93000402,617.69,617.65,1.671]
[1743213282820,0.93000402,617.68,617.65,1.671]
[1743213283924,0.67995082,617.8,617.65,1.671]
[1743213284125,1.88154805,617.79,617.65,1.671]
[1743213284426,2.81145177,617.78,617.65,1.671]
[1743213284724,1.88154805,617.77,617.65,1.671]
[1743213284928,1.20157139,617.76,617.65,1.671]
[1743213285129,1.20157139,617.75,617.65,1.671]
[1743213285326,1.20157139,617.74,617.65,1.671]
[1743213285528,1.20157139,617.73,617.65,1.671]
[1743213285827,0.92990372,617.73,617.65,1.671]
[1743213286528,0.92990372,617.72,617.65,1.671]
[1743213287229,0.92990372,617.71,617.65,1.671]
[1743213287829,0.28179393,617.86,617.65,1.671]
[1743213287830,0.92990372,617.7,617.65,1.671]
[1743213288226,0.92990372,617.69,617.65,1.671]
[1743213288622,0.67988817,617.82,617.65,1.671]
[1743213288826,1.88134047,617.81,617.65,1.671]
[1743213289024,1.88134047,617.8,617.65,1.671]
[1743213289224,1.88134047,617.79,617.65,1.671]
[1743213289427,1.88134047,617.78,617.35,2.48]
[1743213289625,1.88134047,617.77,617.35,2.48]
[1743213289824,1.2014523,617.76,617.35,2.48]
[1743213290028,1.2014523,617.75,617.35,2.48]
[1743213290227,2.13128479,617.74,617.35,2.48]
[1743213290426,1.2014523,617.73,617.35,2.48]
[1743213290622,0.92983249,617.74,617.35,2.48]
[1743213290830,0.92983249,617.72,617.35,2.48]
[1743213291423,0.92983249,617.71,617.35,2.48]
[1743213292229,0.92983249,617.7,617.35,2.48]
[1743213292825,0.92983249,617.69,617.35,2.48]
[1743213293223,0.92983249,617.68,617.35,2.48]
[1743213294024,0.67992005,617.77,617.35,2.48]
[1743213294226,1.20153755,617.76,617.35,2.48]
[1743213294425,1.20153755,617.75,617.35,2.48]
[1743213294629,1.20153755,617.74,617.35,2.48]
[1743213294832,1.20153755,617.73,617.35,2.48]
[1743213295031,0.92993133,617.74,617.35,2.48]
[1743213295231,1.20157354,617.73,617.35,2.48]
[1743213295431,1.20160822,617.72,617.35,2.48]
[1743213295628,0.92993133,617.73,617.35,2.48]
[1743213295832,1.20160792,617.72,617.35,2.48]
[1743213296035,0.92993133,617.73,617.35,2.48]
[1743213296237,2.13154121,617.72,617.35,2.48]
[1743213296531,0.92993133,617.72,617.35,2.48]
[1743213296735,0.92993133,617.71,617.35,2.48]
[1743213297428,0.92993133,617.7,617.35,2.48]
[1743213298134,0.92993133,617.69,617.35,2.48]
[1743213298827,0.92993133,617.68,617.35,2.48]
[1743213299433,0.92993133,617.67,617.35,2.48]
[1743213300034,0.68008455,617.8,617.35,2.48]
[1743213300234,1.88193364,617.79,617.35,2.48]
[1743213300436,1.88193364,617.78,617.35,2.48]
[1743213300736,1.88193364,617.77,617.35,2.48]
[1743213301035,1.20184909,617.76,617.35,1.106]
[1743213301232,1.20186676,617.75,617.35,1.106]
[1743213301433,1.20186676,617.74,617.35,1.106]
[1743213301634,1.20186676,617.73,617.35,1.106]
[1743213301833,0.28181903,617.88,617.35,1.106]
[1743213301834,0.93014143,617.72,617.35,1.106]
[1743213302442,0.93014143,617.71,617.35,1.106]
[1743213302946,0.93014143,617.7,617.35,1.106]
[1743213303847,0.68033163,617.85,617.35,1.106]
[1743213304047,1.88263699,617.84,617.32,1.273]
[1743213304350,1.88263699,617.83,617.32,1.273]
[1743213304544,1.88263699,617.82,617.32,1.273]
[1743213304740,1.88263699,617.81,617.32,1.273]
[1743213304941,1.20230536,617.8,617.32,1.273]
[1743213305138,0.93047312,617.82,617.32,1.273]
[1743213305139,1.20230536,617.79,617.32,1.273]
[1743213305343,1.20230536,617.78,617.32,1.273]
[1743213305544,0.93047312,617.77,617.32,1.273]
[1743213305941,0.93047312,617.77,617.33,1.718]
[1743213306146,2.81299955,617.76,617.33,1.718]
[1743213306348,1.88252643,617.75,617.34,1.143]
[1743213306547,1.88252643,617.74,617.34,1.143]
[1743213306842,1.88252643,617.73,617.34,1.143]
[1743213307047,1.88252643,617.72,617.34,1.143]
[1743213307248,1.88252643,617.71,617.34,1.143]
[1743213307446,1.88252643,617.7,617.34,1.143]
[1743213307649,1.88252643,617.69,617.34,1.143]
[1743213307846,1.88252643,617.68,617.34,1.143]
[1743213308047,2.81299955,617.67,617.34,1.143]
[1743213308248,1.88252643,617.66,617.34,1.143]
[1743213308443,1.88252643,617.65,617.34,1.143]
[1743213308643,1.88252643,617.64,617.34,1.143]
[1743213308847,1.20220565,617.63,617.34,1.143]
[1743213309044,1.20220565,617.62,617.34,1.143]
[1743213309248,1.20220565,617.61,617.34,1.143]
[1743213309445,1.20220565,617.6,617.34,1.143]
[1743213309647,1.20238118,617.59,617.34,1.143]
[1743213309844,0.93047312,617.61,617.34,1.143]
[1743213310043,0.32335251,618.52,617.34,1.143]
[1743213310044,0.93047312,617.58,617.34,1.143]
[1743213310649,0.93047312,617.57,617.34,1.143]
[1743213311149,0.93047312,617.56,617.34,1.143]
[1743213311550,0.93047312,617.55,617.34,1.143]
[1743213312147,0.28186582,617.78,617.34,1.143]
[1743213312344,1.88344008,617.77,617.34,1.143]
[1743213312550,1.88344008,617.76,617.34,1.143]
[1743213312751,2.81432782,617.75,617.34,1.143]
[1743213312950,1.88344008,617.74,617.34,1.143]
[1743213313152,1.88344008,617.73,617.34,1.143]
[1743213313350,1.88344008,617.72,617.34,1.143]
[1743213313649,1.88344008,617.71,617.34,1.143]
[1743213313852,1.88344008,617.7,617.34,1.143]
[1743213314146,2.81432782,617.69,617.34,1.143]
[1743213314446,0.93088774,617.69,617.34,1.143]
[1743213315148,0.93088774,617.68,617.34,1.143]
[1743213315546,0.28183957,617.88,617.34,1.143]
[1743213315547,0.93088774,617.67,617.34,1.143]
[1743213316152,0.32335251,618.52,617.34,1.143]
[1743213316354,1.88440018,618.51,617.34,1.143]
[1743213316654,2.20776315,618.5,617.34,1.143]
[1743213316854,2.20776397,618.49,617.34,1.143]
[1743213317054,2.2077692,618.48,617.34,1.143]
[1743213317251,2.20777443,618.47,617.34,1.143]
[1743213317555,2.20777965,618.46,617.34,1.143]
[1743213317853,2.20778488,618.45,617.34,1.143]
[1743213318053,1.88439577,618.44,617.34,1.143]
[1743213318249,1.88439577,618.43,617.34,1.143]
[1743213318453,1.88439577,618.42,617.34,1.143]
[1743213318652,1.88439577,618.41,617.34,1.143]
[1743213318853,1.88439577,618.4,617.34,1.143]
[1743213319056,1.88439577,618.39,617.34,1.143]
[1743213319255,1.88439577,618.38,617.34,1.143]
[1743213319455,1.88439577,618.37,617.35,0.29226991]
[1743213319660,1.88439577,618.36,617.35,0.29226991]
[1743213319858,1.88439577,618.35,617.35,0.29226991]
[1743213320059,1.88439577,618.34,617.35,0.29226991]
[1743213320259,1.88439577,618.33,617.35,0.29226991]
[1743213320457,1.88439577,618.32,617.35,0.29226991]
[1743213320657,1.88439577,618.31,617.35,0.29226991]
[1743213320858,1.88439577,618.3,617.35,0.29226991]
[1743213321057,1.88439577,618.29,617.35,0.29226991]
[1743213321257,1.88439577,618.28,617.34,1.143]
[1743213321455,1.88439577,618.27,617.34,1.143]
[1743213321656,1.88535117,618.26,617.34,1.143]
[1743213321857,1.88535117,618.25,617.34,1.143]
[1743213322054,1.88535117,618.24,617.34,1.143]
[1743213322358,1.88535117,618.23,617.34,1.143]
[1743213322661,1.88591906,618.22,617.34,1.143]
[1743213322857,1.88591906,618.21,617.34,1.143]
[1743213323057,1.88591906,618.2,617.34,1.143]
[1743213323364,1.88591906,618.19,617.34,1.143]
[1743213323559,1.88591906,618.18,617.34,1.143]
[1743213323858,1.88591906,618.17,617.34,1.143]
[1743213324058,1.88591906,618.16,617.34,1.143]
[1743213324250,1.88591906,618.15,617.34,1.143]
[1743213324452,1.88591906,618.14,617.34,1.143]
[1743213324652,1.88591906,618.13,617.34,1.143]
[1743213324858,1.88591906,618.12,617.34,1.143]
[1743213325057,1.88591906,618.11,617.34,1.143]
[1743213325252,1.88591906,618.1,617.34,1.143]
[1743213325453,1.88591906,618.09,617.34,1.143]
[1743213325658,1.88591906,618.08,617.34,1.143]
[1743213325959,1.88591906,618.07,617.34,1.143]
[1743213326159,1.88591906,618.06,617.34,1.143]
[1743213326354,1.88591906,618.05,617.34,1.143]
[1743213326557,1.88624425,618.04,617.34,1.143]
[1743213326758,1.88624425,618.03,617.34,1.143]
[1743213326959,1.88624425,618.02,617.34,1.143]
[1743213327157,1.88624425,618.01,617.34,1.143]
[1743213327454,1.88624425,618.0,617.34,1.143]
[1743213327656,1.88624425,617.99,617.34,1.143]
[1743213327851,1.88624425,617.98,617.34,1.143]
[1743213328052,1.88624425,617.97,617.34,1.143]
[1743213328255,1.88624425,617.96,617.33,1.718]
[1743213328453,0.93133595,617.97,617.33,1.718]
[1743213328658,1.88592777,617.96,617.33,1.718]
[1743213328857,1.88592777,617.95,617.33,1.718]
[1743213329054,1.88592777,617.94,617.33,1.718]
[1743213329259,1.88592777,617.93,617.33,1.718]
[1743213329460,1.88592777,617.92,617.33,1.718]
[1743213329656,1.88592777,617.91,617.33,1.718]
[1743213329857,1.88592777,617.9,617.32,1.273]
[1743213330055,1.88592777,617.89,617.32,1.273]
[1743213330258,1.88592777,617.88,617.32,1.273]
[1743213330457,2.81720082,617.87,617.32,1.273]
[1743213330659,1.88586487,617.86,617.32,1.273]
[1743213330960,2.81720082,617.85,617.32,1.273]
[1743213331161,1.88586487,617.84,617.32,1.273]
[1743213331354,1.88586487,617.83,617.33,0.939]
[1743213331559,1.88586487,617.82,617.33,2.083]
[1743213331860,1.20439216,617.81,617.33,2.083]
[1743213332062,1.20439216,617.8,617.33,2.083]
[1743213332261,1.20439216,617.79,617.33,2.083]
[1743213332463,0.93133595,617.79,617.33,2.083]
[1743213332663,1.20414155,617.78,617.33,2.083]
[1743213332863,0.93133595,617.79,617.33,2.083]
[1743213333064,1.20415906,617.78,617.33,2.083]
[1743213333264,0.93133595,617.77,617.34,0.878]
[1743213334264,0.93133595,617.76,617.34,0.878]
[1743213335063,0.68148395,618.42,617.34,0.878]
[1743213335261,2.81775195,618.41,617.34,0.878]
[1743213335463,0.28177795,618.07,617.34,0.878]
[1743213335665,1.88586456,618.06,617.34,0.878]
[1743213335864,1.88586456,618.05,617.34,0.878]
[1743213336065,1.88586456,618.04,617.34,0.878]
[1743213336268,1.88586456,618.03,617.34,0.878]
[1743213336459,1.88567354,618.02,617.34,0.878]
[1743213336661,1.88567354,618.01,617.34,0.878]
[1743213336865,1.88567354,618.0,617.34,0.878]
[1743213337066,1.88567354,617.99,617.35,0.998]
[1743213337263,1.88567354,617.98,617.35,0.998]
[1743213337467,1.88567354,617.97,617.35,0.998]
[1743213337668,1.88567354,617.96,617.35,0.998]
[1743213337968,1.88567354,617.95,617.35,0.998]
[1743213338168,1.88567354,617.94,617.35,0.998]
[1743213338468,1.88567354,617.93,617.35,0.998]
[1743213338663,1.88567354,617.92,617.35,0.998]
[1743213338868,1.88567354,617.91,617.35,0.998]
[1743213339068,1.88567354,617.9,617.35,0.998]
[1743213339263,1.88567354,617.89,617.35,0.998]
[1743213339469,1.88567354,617.88,617.35,0.998]
[1743213339768,1.88567354,617.87,617.35,0.998]
[1743213339966,1.88542729,617.86,617.35,0.998]
[1743213340164,1.88538167,617.85,617.35,0.998]
[1743213340363,1.20438061,617.84,617.35,0.998]
[1743213340568,1.20438061,617.83,617.35,0.998]
[1743213340770,1.20438061,617.82,617.35,0.998]
[1743213340969,0.93188739,617.85,617.35,0.998]
[1743213341170,2.13540523,617.84,617.35,0.998]
[1743213341466,1.20351784,617.83,617.35,0.998]
[1743213341663,2.13540523,617.82,617.35,0.998]
[1743213341866,1.20341832,617.81,617.35,0.998]
[1743213342067,0.93188739,617.82,617.35,0.998]
[1743213342268,1.20343729,617.81,617.35,0.998]
[1743213342469,0.93188739,617.8,617.35,0.998]
[1743213343066,0.93188739,617.79,617.35,0.998]
[1743213343668,0.93188739,617.78,617.35,0.998]
[1743213344174,0.93188739,617.77,617.35,0.998]
[1743213344475,0.28180191,617.95,617.35,0.998]
[1743213344773,1.88439757,617.94,617.35,0.998]
[1743213344968,1.88439757,617.93,617.35,0.998]
[1743213345169,1.88439757,617.92,617.35,0.998]
[1743213345473,1.88439757,617.91,617.35,0.998]
[1743213345775,1.88439757,617.9,617.35,0.998]
[1743213345975,1.88439757,617.89,617.36,0.948]
[1743213346174,1.88439757,617.88,617.36,0.948]
[1743213346377,1.88435769,617.87,617.36,0.948]
[1743213346674,1.88435769,617.86,617.36,0.948]
[1743213346869,1.88435769,617.85,617.36,0.948]
[1743213347072,1.88435769,617.84,617.36,0.948]
[1743213347272,1.20338009,617.83,617.37,0.894]
[1743213347469,0.93131674,617.85,617.37,0.894]
[1743213347876,0.93131674,617.84,617.37,0.894]
[1743213348575,0.93131674,617.83,617.37,0.894]
[1743213348977,0.28177225,618.04,617.37,0.894]
[1743213349277,1.88442424,618.03,617.37,0.894]
[1743213349479,0.32338911,618.45,617.37,0.894]
[1743213349480,1.88442424,618.02,617.37,0.894]
[1743213349677,1.88442424,618.01,617.37,0.894]
[1743213349877,1.88442424,618.0,617.37,0.894]
[1743213350173,1.8843272,617.99,617.37,0.894]
[1743213350378,1.8843272,617.98,617.37,0.894]
[1743213350577,1.8843272,617.97,617.37,0.894]
[1743213350777,1.8843272,617.96,617.37,0.894]
[1743213350978,2.81557709,617.95,617.37,0.894]
[1743213351178,1.8843272,617.94,617.37,0.894]
[1743213351374,2.81557709,617.93,617.37,0.894]
[1743213351574,1.8843272,617.92,617.37,0.894]
[1743213351775,1.20334945,617.91,617.37,0.894]
[1743213351976,1.20334945,617.9,617.37,0.894]
[1743213352177,1.20334945,617.89,617.37,0.894]
[1743213352377,1.20334945,617.88,617.37,0.894]
[1743213352676,0.93124989,617.9,617.37,0.894]
[1743213352874,0.93124989,617.87,617.38,0.29221393]
[1743213353074,0.93124989,617.87,617.37,0.894]
[1743213353675,0.93124989,617.86,617.38,0.29220619]
[1743213353976,0.93124989,617.86,617.37,0.894]
[1743213354574,0.68085154,618.0,617.37,0.894]
[1743213354781,1.8840079,617.99,617.37,0.894]
[1743213354974,1.8840079,617.98,617.37,0.894]
[1743213355179,1.8840079,617.97,617.38,1.599]
[1743213355479,2.81509325,617.96,617.38,1.599]
[1743213355682,1.8840079,617.95,617.38,1.599]
[1743213355980,1.20315636,617.94,617.38,1.599]
[1743213356179,1.20315636,617.93,617.39,1.172]
[1743213356374,1.20315636,617.92,617.39,1.172]
[1743213356675,1.20315636,617.91,617.39,1.172]
[1743213356898,0.93108535,617.93,617.39,1.172]
[1743213357076,0.93108535,617.9,617.39,1.172]
[1743213357478,0.93108535,617.89,617.39,1.172]
[1743213357780,0.93108535,617.88,617.39,1.172]
[1743213358579,0.93108535,617.87,617.39,1.172]
[1743213358780,0.93108535,617.87,617.4,0.29220505]
[1743213358981,0.93108535,617.87,617.39,1.172]
[1743213359581,0.2817597,618.03,617.39,1.172]
[1743213359882,2.81449355,618.02,617.39,1.172]
[1743213360083,1.88360078,618.01,617.39,1.172]
[1743213360382,2.81449355,618.0,617.39,1.172]
[1743213360578,1.88360078,617.99,617.39,1.172]
[1743213360778,1.88360078,617.98,617.39,1.172]
[1743213360981,2.81449355,617.97,617.39,1.172]
[1743213361283,1.88360078,617.96,617.39,1.172]
[1743213361582,1.20291507,617.95,617.39,1.172]
[1743213361782,1.20291507,617.94,617.39,1.172]
[1743213361984,1.20291507,617.93,617.39,1.172]
[1743213362283,0.93089277,617.94,617.39,1.172]
[1743213362478,1.20285283,617.93,617.39,1.172]
[1743213362682,0.93089277,617.94,617.39,1.172]
[1743213362875,1.20285099,617.93,617.39,1.172]
[1743213363081,0.93089277,617.92,617.39,1.172]
[1743213363379,1.20278208,617.91,617.39,1.172]
[1743213363580,0.93089277,617.91,617.39,1.172]
[1743213364081,0.93089277,617.9,617.39,1.172]
[1743213364787,0.93089277,617.89,617.39,1.172]
[1743213365477,0.93089277,617.88,617.39,1.172]
[1743213365680,0.93089277,617.88,617.4,1.217]
[1743213365978,0.680574,618.41,617.4,1.217]
[1743213366181,1.88326115,618.4,617.4,1.217]
[1743213366378,2.81420052,618.39,617.4,1.217]
[1743213366582,1.88326115,618.38,617.4,1.217]
[1743213366777,2.81420052,618.37,617.4,1.217]
[1743213366982,1.88326115,618.36,617.4,1.217]
[1743213367175,1.88326115,618.35,617.4,1.217]
[1743213367380,1.88326115,618.34,617.4,1.217]
[1743213367582,1.88326115,618.33,617.4,1.217]
[1743213367783,1.88326115,618.32,617.4,1.217]
[1743213368080,1.88326115,618.31,617.4,1.217]
[1743213368283,1.88326115,618.3,617.4,1.217]
[1743213368584,1.88326115,618.29,617.4,1.217]
[1743213368785,1.88326115,618.28,617.4,1.217]
[1743213368980,1.87111825,618.27,617.4,1.217]
[1743213369179,1.20268715,618.26,617.4,1.217]
[1743213369479,1.20268715,618.25,617.4,1.217]
[1743213369679,2.13362652,618.24,617.4,1.217]
[1743213369878,1.20268715,618.23,617.4,1.217]
[1743213370084,1.20268715,618.22,617.4,1.217]
[1743213370284,2.13362652,618.21,617.4,1.217]
[1743213370484,1.20268715,618.2,617.4,1.217]
[1743213370781,1.20268715,618.19,617.4,1.217]
[1743213370981,1.20268715,618.18,617.4,1.217]
[1743213371185,1.20388279,618.17,617.4,1.217]
[1743213371381,1.20388279,618.16,617.4,1.217]
[1743213371583,1.20388279,618.15,617.4,1.217]
[1743213371780,1.20388279,618.14,617.4,1.217]
[1743213371986,1.20388279,618.13,617.4,1.217]
[1743213372181,1.20388279,618.12,617.4,1.217]
[1743213372388,1.20388279,618.11,617.4,1.217]
[1743213372587,1.20388279,618.1,617.4,1.217]
[1743213372788,1.20388279,618.09,617.4,1.217]
[1743213372989,1.20388279,618.08,617.4,1.217]
[1743213373188,1.20388279,618.07,617.4,1.217]
[1743213373383,1.20388279,618.06,617.4,1.217]
[1743213373588,1.20388279,618.05,617.4,1.217]
[1743213373790,1.20388279,618.04,617.4,1.217]
[1743213373989,1.20388279,618.03,617.4,1.217]
[1743213374286,1.20388279,618.02,617.4,1.217]
[1743213374484,1.20388279,618.01,617.4,2.192]
[1743213374691,1.20388279,618.0,617.4,2.192]
[1743213374986,1.20388279,617.99,617.4,2.192]
[1743213375187,1.20388279,617.98,617.4,2.192]
[1743213375389,1.20388279,617.97,617.4,2.192]
[1743213375587,1.20388279,617.96,617.4,2.192]
[1743213375788,2.13482216,617.95,617.4,3.363]
[1743213375990,1.20388279,617.94,617.4,3.363]
[1743213376190,1.20388279,617.93,617.4,3.363]
[1743213376494,1.20388279,617.92,617.4,3.363]
[1743213376687,1.20388279,617.91,617.4,4.289]
[1743213376890,2.13482216,617.9,617.4,4.289]
[1743213377091,1.2057996,617.89,617.4,4.289]
[1743213377294,0.93093937,617.9,617.4,4.289]
[1743213377295,1.2057996,617.88,617.4,4.289]
[1743213377495,1.2057996,617.87,617.4,4.289]
[1743213377696,1.2057996,617.86,617.4,4.289]
[1743213377897,1.2057996,617.85,617.4,4.289]
[1743213378097,1.2057996,617.84,617.4,4.289]
[1743213378399,1.2057996,617.83,617.41,0.29165635]
[1743213378593,0.93093937,617.83,617.41,0.29165635]
[1743213379196,0.93093937,617.82,617.41,0.29165635]
[1743213379794,0.93093937,617.81,617.41,0.29165635]
[1743213380194,0.93093937,617.81,617.4,4.289]
[1743213380395,0.93093937,617.81,617.41,0.29162528]
[1743213380594,0.93093937,617.8,617.41,0.29162528]
[1743213381195,0.93093937,617.79,617.41,0.29162528]
[1743213381698,0.28176655,618.03,617.41,0.29162528]
[1743213381999,1.88849894,618.02,617.41,0.29162528]
[1743213382197,1.88849894,618.01,617.41,0.29162528]
[1743213382391,1.88849894,618.0,617.41,0.29162528]
[1743213382595,1.88849894,617.99,617.41,0.29162528]
[1743213382793,1.88849894,617.98,617.41,0.29162528]
[1743213382995,1.88849894,617.97,617.41,0.29162528]
[1743213383198,1.88849894,617.96,617.41,0.29162528]
[1743213383393,1.88849894,617.95,617.41,0.29162528]
[1743213383597,2.82192927,617.94,617.41,0.29162528]
[1743213383800,1.88849894,617.93,617.41,0.29162528]
[1743213383994,1.88849894,617.92,617.41,0.29162528]
[1743213384192,1.88849894,617.91,617.41,0.29162528]
[1743213384499,2.82192927,617.9,617.41,0.29162528]
[1743213384697,1.20619417,617.89,617.41,0.29162528]
[1743213384893,1.20619417,617.88,617.41,0.29162528]
[1743213385098,1.20619417,617.87,617.41,0.29162528]
[1743213385293,1.20619417,617.86,617.41,0.29162528]
[1743213385492,0.93343033,617.87,617.41,0.29162528]
[1743213385696,2.13960843,617.86,617.41,0.29162528]
[1743213385896,1.20616814,617.85,617.41,1.35462528]
[1743213386095,0.93343033,617.84,617.41,1.063]
[1743213386694,0.93343033,617.83,617.41,1.063]
[1743213387093,0.93343033,617.82,617.41,1.063]
[1743213387599,0.93343033,617.81,617.41,1.063]
[1743213387995,0.28175058,618.07,617.41,1.063]
[1743213388195,1.88839514,618.06,617.41,1.063]
[1743213388399,1.88839514,618.05,617.41,1.063]
[1743213388700,2.82177935,618.04,617.41,1.063]
[1743213388895,1.88839514,618.03,617.41,1.063]
[1743213389101,1.88839514,618.02,617.41,1.063]
[1743213389302,1.88839514,618.01,617.41,1.063]
[1743213389496,0.93338421,618.02,617.41,1.063]
[1743213389497,1.88839514,618.0,617.41,1.063]
[1743213389702,1.88839514,617.99,617.41,1.063]
[1743213389904,1.88839514,617.98,617.41,1.063]
[1743213390103,1.88839514,617.97,617.42,0.29161687]
[1743213390301,1.88839514,617.96,617.42,0.29161687]
[1743213390602,1.88839514,617.95,617.42,0.29161687]
[1743213390805,1.88839514,617.94,617.41,1.063]
[1743213391004,1.88839514,617.93,617.42,0.2916171]
[1743213391205,1.88839514,617.92,617.42,0.2916171]
[1743213391406,1.20613073,617.91,617.42,0.2916171]
[1743213391605,2.13951494,617.9,617.42,0.2916171]
[1743213391803,1.20613073,617.89,617.42,0.2916171]
[1743213392004,1.20637098,617.88,617.41,1.063]
[1743213392205,0.93338421,617.9,617.41,1.063]
[1743213392505,0.93338421,617.87,617.41,1.063]
[1743213392706,0.93338421,617.86,617.42,0.29161675]
[1743213393109,0.93338421,617.85,617.42,0.29161675]
[1743213393405,0.93338421,617.84,617.42,0.29161675]
[1743213393802,0.28174602,618.07,617.42,0.29161675]
[1743213394003,1.88880598,618.06,617.41,1.063]
[1743213394204,1.88880598,618.05,617.41,1.063]
[1743213394407,2.82240925,618.04,617.41,1.063]
[1743213394707,1.88880598,618.03,617.41,1.063]
[1743213394907,2.82240925,618.02,617.41,1.063]
[1743213395107,1.88880598,618.01,617.41,1.063]
[1743213395406,2.82240925,618.0,617.41,1.063]
[1743213395602,1.88880598,617.99,617.41,1.063]
[1743213395801,1.88880598,617.98,617.41,1.063]
[1743213396004,0.93360327,618.0,617.41,1.063]
[1743213396005,1.88880598,617.97,617.41,1.063]
[1743213396207,1.88880598,617.96,617.41,1.063]
[1743213396506,1.88880598,617.95,617.41,1.063]
[1743213396708,1.88880598,617.94,617.41,1.063]
[1743213396908,1.88880598,617.93,617.41,1.063]
[1743213397109,1.88880598,617.92,617.41,1.063]
[1743213397408,1.2063938,617.91,617.41,1.063]
[1743213397608,1.2063938,617.9,617.41,1.063]
[1743213397806,1.2063938,617.89,617.41,1.063]
[1743213398006,1.2063938,617.88,617.41,1.063]
[1743213398206,0.93360327,617.9,617.41,1.063]
[1743213398207,1.2063938,617.87,617.41,1.063]
[1743213398407,1.2063938,617.86,617.41,1.063]
[1743213398613,1.2063938,617.85,617.41,1.063]
[1743213398813,1.2063938,617.84,617.41,1.063]
[1743213399013,0.93360327,617.85,617.41,1.063]
[1743213399212,1.20664626,617.84,617.41,1.063]
[1743213399413,0.93360327,617.84,617.41,1.063]
[1743213399712,0.93360327,617.83,617.41,1.063]
[1743213400509,0.93360327,617.82,617.41,1.063]
[1743213401016,0.93360327,617.81,617.41,1.063]
[1743213401216,0.32338911,618.45,617.41,1.063]
[1743213401217,0.93360327,617.8,617.41,1.063]
[1743213401515,0.93360327,617.79,617.41,1.063]
[1743213402216,0.28175514,618.07,617.41,1.063]
[1743213402409,1.8896782,618.06,617.41,1.063]
[1743213402613,1.8896782,618.05,617.41,1.063]
[1743213402812,1.8896782,618.04,617.41,1.063]
[1743213403015,1.8896782,618.03,617.41,1.063]
[1743213403215,1.8896782,618.02,617.41,1.063]
[1743213403414,1.8896782,618.01,617.41,1.063]
[1743213403611,2.82368799,618.0,617.41,1.063]
[1743213403817,1.8896782,617.99,617.41,1.063]
[1743213404019,1.8896782,617.98,617.41,1.063]
[1743213404212,1.8896782,617.97,617.41,1.063]
[1743213404417,1.8896782,617.96,617.41,1.063]
[1743213404617,1.8896782,617.95,617.41,1.063]
[1743213404815,1.8896782,617.94,617.41,1.063]
[1743213405015,1.8896782,617.93,617.41,1.063]
[1743213405213,1.8896782,617.92,617.41,1.063]
[1743213405413,1.8896782,617.91,617.41,1.933]
[1743213405618,1.8896782,617.9,617.41,1.933]
[1743213405819,1.8896782,617.89,617.41,1.933]
[1743213406018,1.20695035,617.88,617.41,1.933]
[1743213406219,1.20695035,617.87,617.41,1.933]
[1743213406419,1.20695035,617.86,617.41,1.933]
[1743213406620,1.20695035,617.85,617.41,1.933]
[1743213406822,0.93400979,617.85,617.42,0.29160804]